[Event "NJSK 2021 Meisjes A&B"]
[Site "Almelo, Netherlands"]
[Date "2021.08.01"]
[Round "1.6"]
[White "Bogouslavskii, Veronique"]
[Black "Honkoop, Stella"]
[Result "0-1"]
[TimeControl "90min/40moves + 30sec/move"]
[WhiteElo "1207"]
[BlackElo "1573"]

1. d4 {[%clk 01:30:55]} {[%emt 00:00:04]} Nf6 {[%clk 01:30:49]} {[%emt
00:00:11]} 2. Bf4 {[%clk 01:31:11]} {[%emt 00:00:13]} g6 {[%clk 01:31:06]}
{[%emt 00:00:15]} 3. e3 {[%clk 01:31:31]} {[%emt 00:00:09]} Bg7 {[%clk
01:31:26]} {[%emt 00:00:10]} 4. Nd2 {[%clk 01:31:44]} {[%emt 00:00:16]} d6
{[%clk 01:31:29]} {[%emt 00:00:28]} 5. Bd3 {[%clk 01:31:16]} {[%emt 00:00:58]}
O-O {[%clk 01:31:44]} {[%emt 00:00:15]} 6. Ngf3 {[%clk 01:31:28]} {[%emt
00:00:18]} Re8 {[%clk 01:31:24]} {[%emt 00:00:50]} 7. h3 {[%clk 01:29:24]}
{[%emt 00:02:34]} Nc6 {[%clk 01:28:56]} {[%emt 00:02:59]} 8. e4 {[%clk
01:25:23]} {[%emt 00:04:30]} e5 {[%clk 01:26:20]} {[%emt 00:03:06]} 9. dxe5
{[%clk 01:25:16]} {[%emt 00:00:36]} dxe5 {[%clk 01:26:38]} {[%emt 00:00:13]} 10.
Bg5 {[%clk 01:22:56]} {[%emt 00:02:51]} a6 {[%clk 01:12:33]} {[%emt 00:14:35]}
11. a4 {[%clk 01:19:34]} {[%emt 00:07:03]} Nb4 {[%clk 01:02:47]} {[%emt
00:07:05]} 12. Nc4 {[%clk 01:10:51]} {[%emt 00:09:11]} Nxd3+ {[%clk 00:51:51]}
{[%emt 00:11:26]} 13. cxd3 {[%clk 01:09:30]} {[%emt 00:01:51]} c6 {[%clk
00:48:29]} {[%emt 00:03:53]} 14. a5 {[%clk 00:55:01]} {[%emt 00:14:59]} Qc7
{[%clk 00:45:48]} {[%emt 00:03:10]} 15. Be3 {[%clk 00:44:32]} {[%emt 00:10:59]}
Nd7 {[%clk 00:39:33]} {[%emt 00:06:45]} 16. Nb6 {[%clk 00:42:33]} {[%emt
00:02:29]} Rb8 {[%clk 00:36:12]} {[%emt 00:03:52]} 17. Nd2 {[%clk 00:37:56]}
{[%emt 00:05:08]} Bf8 {[%clk 00:29:39]} {[%emt 00:07:02]} 18. O-O {[%clk
00:33:01]} {[%emt 00:05:24]} Nc5 {[%clk 00:20:51]} {[%emt 00:09:19]} 19. Nb3
{[%clk 00:27:17]} {[%emt 00:06:14]} Nxb3 {[%clk 00:17:26]} {[%emt 00:03:55]} 20.
Qxb3 {[%clk 00:27:45]} {[%emt 00:00:02]} Be6 {[%clk 00:17:47]} {[%emt
00:00:09]} 21. Qc3 {[%clk 00:26:00]} {[%emt 00:02:14]} Rbd8 {[%clk 00:17:19]}
{[%emt 00:00:59]} 22. Rfd1 {[%clk 00:23:13]} {[%emt 00:03:17]} Qe7 {[%clk
00:15:30]} {[%emt 00:02:18]} 23. Ra4 {[%clk 00:11:50]} {[%emt 00:11:53]} Bg7
{[%clk 00:12:56]} {[%emt 00:03:04]} 24. Bc5 {[%clk 00:10:52]} {[%emt 00:01:29]}
Qg5 {[%clk 00:12:07]} {[%emt 00:01:19]} 25. Kh2 {[%clk 00:08:30]} {[%emt
00:02:52]} Qf4+ {[%clk 00:11:22]} {[%emt 00:01:15]} 26. Kh1 {[%clk 00:07:08]}
{[%emt 00:01:51]} Qh4 {[%clk 00:10:40]} {[%emt 00:01:12]} 27. Qe1 {[%clk
00:05:48]} {[%emt 00:01:50]} Bb3 {[%clk 00:08:45]} {[%emt 00:02:25]} 28. Raa1
{[%clk 00:04:02]} {[%emt 00:02:16]} Bxd1 {[%clk 00:08:58]} {[%emt 00:00:17]} 29.
Rxd1 {[%clk 00:04:31]} {[%emt 00:00:01]} Bh6 {[%clk 00:07:13]} {[%emt
00:02:15]} 30. Nc4 {[%clk 00:04:27]} {[%emt 00:00:35]} Bf8 {[%clk 00:05:55]}
{[%emt 00:01:48]} 31. Bb6 {[%clk 00:04:43]} {[%emt 00:00:14]} Rd7 {[%clk
00:06:11]} {[%emt 00:00:13]} 32. Qc3 {[%clk 00:05:00]} {[%emt 00:00:13]} Qh5
{[%clk 00:05:34]} {[%emt 00:01:08]} 33. Re1 {[%clk 00:03:20]} {[%emt 00:02:09]}
c5 {[%clk 00:03:52]} {[%emt 00:02:13]} 34. Ne3 {[%clk 00:03:37]} {[%emt
00:00:13]} Qh4 {[%clk 00:02:24]} {[%emt 00:01:58]} 35. Qc2 {[%clk 00:03:33]}
{[%emt 00:00:34]} Qf6 {[%clk 00:01:41]} {[%emt 00:01:13]} 36. Nd5 {[%clk
00:03:53]} {[%emt 00:00:09]} Rxd5 {[%clk 00:01:29]} {[%emt 00:00:43]} 37. exd5
{[%clk 00:04:20]} {[%emt 00:00:02]} Bd6 {[%clk 00:01:58]} {[%emt 00:00:01]} 38.
Bxc5 {[%clk 00:03:46]} {[%emt 00:01:04]} Rc8 {[%clk 00:01:23]} {[%emt
00:01:05]} 39. b4 {[%clk 00:04:02]} {[%emt 00:00:14]} Qf5 {[%clk 00:00:58]}
{[%emt 00:00:56]} 40. Rc1 {[%clk 00:01:25]} {[%emt 00:03:06]} Qf4 {[%clk
00:00:35]} {[%emt 00:00:54]} 41. Qc4 {[%clk 00:26:47]} {[%emt 00:05:56]} e4
{[%clk 00:27:50]} {[%emt 00:03:15]} 42. Kg1 {[%clk 00:16:10]} {[%emt 00:11:07]}
Qh2+ {[%clk 00:25:15]} {[%emt 00:03:04]} 43. Kf1 {[%clk 00:16:38]} {[%emt
00:00:02]} Qh1+ {[%clk 00:25:33]} {[%emt 00:00:12]} 44. Ke2 {[%clk 00:17:01]}
{[%emt 00:00:08]} exd3+ {[%clk 00:25:55]} {[%emt 00:00:08]} 45. Kd2 {[%clk
00:13:52]} {[%emt 00:03:38]} Qxg2 {[%clk 00:22:52]} {[%emt 00:03:33]} 46. Qg4
{[%clk 00:13:52]} {[%emt 00:00:30]} Qxg4 {[%clk 00:19:38]} {[%emt 00:03:44]} 47.
hxg4 {[%clk 00:14:14]} {[%emt 00:00:09]} Bf4+ {[%clk 00:15:19]} {[%emt
00:04:49]} 48. Be3 {[%clk 00:14:28]} {[%emt 00:00:16]} Rxc1 {[%clk 00:14:39]}
{[%emt 00:01:10]} 49. Kxc1 {[%clk 00:14:56]} {[%emt 00:00:02]} Bd6 {[%clk
00:14:21]} {[%emt 00:00:48]} 50. Bc5 {[%clk 00:13:20]} {[%emt 00:02:06]} Bf4+
{[%clk 00:11:35]} {[%emt 00:03:16]} 51. Kd1 {[%clk 00:01:03]} {[%emt 00:12:47]}
f5 {[%clk 00:10:05]} {[%emt 00:01:59]} 52. d6 {[%clk 00:00:43]} {[%emt
00:00:50]} Kf7 {[%clk 00:10:09]} {[%emt 00:00:26]} 53. d7 {[%clk 00:00:35]}
{[%emt 00:00:38]} Bc7 {[%clk 00:10:36]} {[%emt 00:00:04]} 54. gxf5 {[%clk
00:00:31]} {[%emt 00:00:33]} gxf5 {[%clk 00:10:58]} {[%emt 00:00:08]} 55. Bd6
{[%clk 00:00:00]} {[%emt 00:00:31]} 0-1

[Event "NJSK 2021 Meisjes A&B"]
[Site "Almelo, Netherlands"]
[Date "2021.08.01"]
[Round "1.7"]
[White "Martinez, Sara"]
[Black "Bertholee, Arjuna"]
[Result "1/2-1/2"]
[TimeControl "90min/40moves + 30sec/move"]
[WhiteElo "1528"]
[BlackElo "1144"]

1. e4 {[%clk 01:30:58]} {[%emt 00:00:02]} e5 {[%clk 01:30:53]} {[%emt
00:00:07]} 2. Nf3 {[%clk 01:31:24]} {[%emt 00:00:04]} Nc6 {[%clk 01:31:12]}
{[%emt 00:00:11]} 3. d4 {[%clk 01:31:47]} {[%emt 00:00:07]} exd4 {[%clk
01:31:31]} {[%emt 00:00:11]} 4. Nxd4 {[%clk 01:32:09]} {[%emt 00:00:07]} Nf6
{[%clk 01:31:37]} {[%emt 00:00:25]} 5. Nc3 {[%clk 01:32:13]} {[%emt 00:00:26]}
Bb4 {[%clk 01:31:53]} {[%emt 00:00:14]} 6. Nxc6 {[%clk 01:31:52]} {[%emt
00:00:52]} bxc6 {[%clk 01:32:05]} {[%emt 00:00:17]} 7. Bd2 {[%clk 01:31:00]}
{[%emt 00:01:22]} O-O {[%clk 01:29:01]} {[%emt 00:03:34]} 8. Bd3 {[%clk
01:25:21]} {[%emt 00:06:09]} Re8 {[%clk 01:26:32]} {[%emt 00:02:59]} 9. O-O
{[%clk 01:20:38]} {[%emt 00:05:12]} Bxc3 {[%clk 01:17:25]} {[%emt 00:09:37]} 10.
Bxc3 {[%clk 01:20:58]} {[%emt 00:00:11]} Nxe4 {[%emt 00:00:19]} 11. Bd4 d5 12.
f3 Nd6 13. Re1 Bf5 14. Rxe8+ Qxe8 15. Qd2 Bxd3 16. Qxd3 Qe6 17. Qd2 Nb5 18. Re1
Qd7 19. Be5 f6 20. Bg3 Re8 21. c4 Rxe1+ 22. Bxe1 Nd6 23. cxd5 Nc4 24. Qb4 cxd5
25. Qb8+ Kf7 26. b3 Qe7 27. Bf2 Qe5 28. g3 Ne3 29. Bxe3 Qxe3+ 30. Kg2 Qe2+ 31.
Kg1 Qxa2 32. Qxc7+ Kg6 33. Qc3 Qb1+ 34. Kf2 Qh1 35. Qd3+ Kh6 36. Qe3+ g5 37.
Qe6 Qxh2+ 38. Kf1 Qb2 39. Qxd5 Qa1+ 40. Kf2 a5 41. Qf7 Qd4+ 42. Kg2 Qd8 43. Kf2
Qd2+ 44. Kf1 Qd3+ 45. Kf2 Qg6 46. Qf8+ 1/2-1/2

[Event "NJSK 2021 Meisjes A&B"]
[Site "Almelo, Netherlands"]
[Date "2021.08.02"]
[Round "2.1"]
[White "Honkoop, Stella"]
[Black "Ricken, Katharina"]
[Result "0-1"]
[TimeControl "90min/40moves + 30sec/move"]
[WhiteElo "1573"]
[BlackElo "2030"]

1. d4 {[%clk 01:30:57]} {[%emt 00:00:02]} e6 {[%clk 01:30:55]} {[%emt
00:00:05]} 2. Nf3 {[%clk 01:31:20]} {[%emt 00:00:08]} Nf6 {[%clk 01:31:20]}
{[%emt 00:00:05]} 3. Bf4 {[%clk 01:31:41]} {[%emt 00:00:09]} c5 {[%clk
01:31:44]} {[%emt 00:00:06]} 4. e3 {[%emt 00:00:19]} d5 {[%clk 01:31:58]}
{[%emt 00:00:13]} 5. c3 {[%clk 01:32:14]} {[%emt 00:00:11]} Bd6 {[%clk
01:32:23]} {[%emt 00:00:06]} 6. Bg3 {[%clk 01:32:38]} {[%emt 00:00:05]} Nc6
{[%clk 01:32:47]} {[%emt 00:00:06]} 7. Nbd2 {[%clk 01:32:48]} {[%emt 00:00:20]}
O-O {[%clk 01:33:08]} {[%emt 00:00:09]} 8. Ne5 {[%clk 01:31:30]} {[%emt
00:01:47]} Ne7 {[%clk 01:33:18]} {[%emt 00:00:21]} 9. Bd3 {[%clk 01:30:56]}
{[%emt 00:01:04]} b6 {[%clk 01:33:37]} {[%emt 00:00:11]} 10. h4 {[%clk
01:27:43]} {[%emt 00:03:43]} Bb7 {[%clk 01:29:05]} {[%emt 00:05:02]} 11. h5
{[%clk 01:25:59]} {[%emt 00:02:14]} Ne4 {[%clk 01:23:04]} {[%emt 00:06:32]} 12.
Qc2 {[%clk 01:16:20]} {[%emt 00:10:09]} f6 {[%clk 01:19:18]} {[%emt 00:04:15]}
13. Bxe4 {[%clk 01:07:55]} {[%emt 00:08:55]} dxe4 {[%clk 01:19:14]} {[%emt
00:00:33]} 14. Ng4 {[%clk 01:06:53]} {[%emt 00:01:32]} Bxg3 {[%clk 01:18:00]}
{[%emt 00:01:45]} 15. fxg3 {[%clk 01:06:42]} {[%emt 00:00:41]} Qc7 {[%clk
01:14:52]} {[%emt 00:03:38]} 16. Rh3 {[%clk 00:59:48]} {[%emt 00:07:23]} cxd4
{[%clk 00:56:00]} {[%emt 00:19:22]} 17. exd4 {[%clk 00:59:46]} f5 {[%clk
00:47:39]} {[%emt 00:09:24]} 18. Ne5 {[%clk 00:53:26]} Ba6 {[%emt 00:10:04]} 19.
Qb3 Qd6 20. Ndc4 Bxc4 21. Nxc4 Qd5 22. Ne3 Qd7 23. O-O-O Nd5 24. Nxd5 exd5 25.
Rh4 Rad8 26. Rf4 Qe7 27. h6 g6 28. Re1 Qg5 29. Re3 Qxh6 30. Kd2 g5 {[%clk
00:44:54]} 31. Rf1 {[%clk 00:43:35]} Qh2 {[%clk 00:18:33]} {[%emt 01:19:22]} 32.
Rf2 {[%clk 00:13:35]} Kh8 {[%emt 00:02:40]} 33. Qa3 Rf7 34. Qb3 Rdd7 {[%clk
00:16:44]} 35. Qb5 {[%clk 00:13:22]} Rd8 {[%emt 00:04:54]} 36. Qb3 Kg7 37. Qa3
f4 38. gxf4 gxf4 39. Rh3 e3+ 40. Ke1 Qg1+ 41. Rf1 Qxg2 42. Rxe3 fxe3 43. Rxf7+
Kxf7 44. Qxa7+ Kg8 {[%clk 00:13:02]} 0-1

[Event "NJSK 2021 Meisjes A&B"]
[Site "Almelo, Netherlands"]
[Date "2021.08.02"]
[Round "2.2"]
[White "Maris, Evi"]
[Black "Cordes, Jule"]
[Result "1-0"]
[TimeControl "90min/40moves + 30sec/move"]
[WhiteElo "1232"]
[BlackElo "1790"]

1. e4 {[%clk 01:30:57]} {[%emt 00:00:03]} c5 {[%clk 01:30:53]} {[%emt
00:00:08]} 2. Nf3 {[%clk 01:31:21]} {[%emt 00:00:07]} g6 {[%clk 01:31:13]}
{[%emt 00:00:10]} 3. d4 {[%clk 01:31:26]} {[%emt 00:00:24]} cxd4 {[%clk
01:31:34]} {[%emt 00:00:09]} 4. Qxd4 {[%clk 01:31:32]} {[%emt 00:00:24]} Nf6
{[%clk 01:31:52]} {[%emt 00:00:12]} 5. e5 {[%clk 01:31:50]} {[%emt 00:00:12]}
Nc6 {[%clk 01:32:07]} {[%emt 00:00:16]} 6. Qc4 {[%clk 01:29:53]} {[%emt
00:02:26]} d5 {[%clk 01:28:57]} {[%emt 00:03:40]} 7. exd6 {[%clk 01:30:00]}
{[%emt 00:00:23]} Qxd6 {[%clk 01:27:24]} {[%emt 00:02:03]} 8. Nc3 {[%clk
01:29:39]} {[%emt 00:00:51]} a6 {[%clk 01:19:13]} {[%emt 00:08:42]} 9. Bf4
{[%clk 01:28:21]} {[%emt 00:01:46]} e5 {[%clk 01:14:03]} {[%emt 00:05:41]} 10.
Rd1 {[%clk 01:27:44]} {[%emt 00:01:08]} Qe7 {[%clk 01:09:33]} {[%emt 00:04:59]}
11. Bg5 {[%clk 01:27:33]} {[%emt 00:00:41]} Be6 {[%clk 01:02:24]} {[%emt
00:07:40]} 12. Qh4 {[%clk 01:27:22]} {[%emt 00:00:40]} Bg7 {[%clk 01:02:20]}
{[%emt 00:00:34]} 13. Bc4 {[%clk 01:26:28]} {[%emt 00:01:23]} h6 {[%clk
00:58:12]} {[%emt 00:04:39]} 14. Bxf6 {[%clk 01:25:44]} {[%emt 00:01:13]} Bxf6
{[%clk 00:58:25]} {[%emt 00:00:18]} 15. Qe4 {[%clk 01:25:48]} {[%emt 00:00:26]}
Bf5 {[%emt 00:07:10]} 16. Qe2 {[%clk 01:25:23]} {[%emt 00:00:53]} Nb4 {[%clk
00:36:47]} {[%emt 00:15:30]} 17. Bb3 {[%clk 01:24:15]} {[%emt 00:01:38]} O-O
{[%clk 00:19:05]} {[%emt 00:18:12]} 18. O-O {[%clk 01:24:14]} {[%emt 00:00:30]}
Rad8 {[%clk 00:15:46]} {[%emt 00:03:50]} 19. a3 {[%clk 01:24:07]} {[%emt
00:00:37]} e4 {[%clk 00:14:41]} {[%emt 00:01:35]} 20. axb4 {[%clk 01:22:02]}
{[%emt 00:02:34]} exf3 {[%clk 00:14:58]} {[%emt 00:00:14]} 21. Qxf3 {[%clk
01:22:21]} {[%emt 00:00:11]} Rxd1 {[%clk 00:08:23]} {[%emt 00:07:06]} 22. Rxd1
{[%clk 01:22:33]} {[%emt 00:00:18]} Re8 {[%clk 00:08:20]} {[%emt 00:00:32]} 23.
h3 {[%clk 01:21:44]} {[%emt 00:01:18]} Qxb4 {[%clk 00:08:26]} {[%emt 00:00:25]}
24. g4 {[%clk 01:20:49]} {[%emt 00:01:25]} Bxc2 {[%clk 00:03:30]} {[%emt
00:05:26]} 25. Bxc2 {[%clk 01:20:53]} {[%emt 00:00:25]} Qxb2 {[%clk 00:03:52]}
{[%emt 00:00:08]} 26. Qxf6 {[%clk 01:20:32]} {[%emt 00:00:51]} Qxc2 {[%clk
00:04:15]} {[%emt 00:00:08]} 27. Rd7 {[%clk 01:20:08]} {[%emt 00:00:53]} Qb3
{[%clk 00:03:57]} {[%emt 00:00:49]} 28. Nd5 {[%clk 01:20:10]} {[%emt 00:00:28]}
Rf8 {[%clk 00:03:14]} {[%emt 00:01:12]} 29. Ne7+ {[%clk 01:20:32]} {[%emt
00:00:08]} Kh7 {[%clk 00:03:36]} {[%emt 00:00:09]} 30. Kg2 {[%clk 01:17:50]}
{[%emt 00:03:12]} Qc4 {[%clk 00:03:48]} {[%emt 00:00:18]} 31. Rd4 {[%clk
01:17:14]} {[%emt 00:01:04]} Qc2 {[%clk 00:03:00]} {[%emt 00:01:20]} 32. g5
{[%clk 01:17:20]} {[%emt 00:00:24]} h5 {[%clk 00:02:46]} {[%emt 00:00:44]} 33.
Rh4 {[%clk 01:17:16]} {[%emt 00:00:33]} Qd3 {[%clk 00:01:11]} {[%emt 00:02:06]}
34. Rxh5+ {[%clk 01:17:32]} {[%emt 00:00:13]} gxh5 {[%clk 00:01:29]} {[%emt
00:00:13]} 35. Qh6# {[%clk 01:17:55]} {[%emt 00:00:06]} 1-0

[Event "NJSK 2021 Meisjes A&B"]
[Site "Almelo, Netherlands"]
[Date "2021.08.02"]
[Round "2.3"]
[White "Basa, Manasvita"]
[Black "Den Heijer, Rolinde"]
[Result "0-1"]
[TimeControl "90min/40moves + 30sec/move"]
[WhiteElo "1711"]
[BlackElo "1483"]

1. e4 {[%clk 01:30:57]} {[%emt 00:00:02]} c5 {[%clk 01:30:57]} {[%emt
00:00:03]} 2. Nf3 {[%clk 01:31:20]} {[%emt 00:00:07]} d6 {[%clk 01:31:21]}
{[%emt 00:00:06]} 3. d4 {[%clk 01:31:45]} {[%emt 00:00:06]} cxd4 {[%clk
01:31:46]} {[%emt 00:00:05]} 4. Nxd4 {[%clk 01:32:10]} {[%emt 00:00:05]} Nf6
{[%clk 01:32:04]} {[%emt 00:00:13]} 5. Nc3 {[%clk 01:32:34]} {[%emt 00:00:06]}
g6 {[%clk 01:32:01]} {[%emt 00:00:33]} 6. Bc4 {[%clk 01:31:52]} {[%emt
00:01:11]} Bg7 {[%clk 01:31:46]} {[%emt 00:00:45]} 7. h3 {[%clk 01:31:40]}
{[%emt 00:00:42]} Nc6 {[%clk 01:31:27]} {[%emt 00:00:49]} 8. Be3 {[%clk
01:32:01]} {[%emt 00:00:09]} Bd7 {[%clk 01:31:07]} {[%emt 00:00:50]} 9. O-O
{[%clk 01:31:49]} {[%emt 00:00:43]} O-O {[%clk 01:30:45]} {[%emt 00:00:52]} 10.
f4 {[%clk 01:22:55]} {[%emt 00:09:23]} Na5 {[%clk 01:23:26]} {[%emt 00:07:49]}
11. Bd3 {[%clk 01:20:43]} {[%emt 00:02:42]} Rc8 {[%clk 01:19:18]} {[%emt
00:04:38]} 12. Qe2 {[%clk 01:20:40]} {[%emt 00:00:33]} Be6 {[%clk 01:16:19]}
{[%emt 00:03:29]} 13. Nxe6 {[%clk 01:06:40]} {[%emt 00:14:31]} fxe6 {[%clk
01:16:38]} {[%emt 00:00:10]} 14. Nb5 {[%clk 01:06:56]} {[%emt 00:00:15]} Nh5
{[%clk 01:08:51]} {[%emt 00:08:16]} 15. Rf3 {[%clk 01:03:06]} {[%emt 00:04:19]}
Bxb2 {[%clk 01:02:02]} {[%emt 00:07:20]} 16. Rb1 {[%clk 01:03:24]} {[%emt
00:00:12]} Bh8 {[%clk 01:00:48]} {[%emt 00:01:44]} 17. Nxa7 {[%clk 01:02:44]}
{[%emt 00:01:10]} Ra8 {[%clk 00:59:52]} {[%emt 00:01:26]} 18. g4 {[%clk
01:00:28]} {[%emt 00:02:46]} Nxf4 {[%clk 00:51:28]} {[%emt 00:08:54]} 19. Bxf4
{[%clk 00:50:07]} {[%emt 00:10:50]} Rxa7 {[%clk 00:50:54]} {[%emt 00:01:05]} 20.
Be3 {[%clk 00:47:44]} {[%emt 00:02:53]} Ra8 {[%clk 00:49:51]} {[%emt 00:01:33]}
21. Bb6 {[%clk 00:46:56]} {[%emt 00:01:18]} Qd7 {[%clk 00:47:16]} {[%emt
00:03:05]} 22. Rxf8+ {[%clk 00:36:08]} {[%emt 00:11:17]} Kxf8 {[%clk 00:46:59]}
{[%emt 00:00:48]} 23. Qf3+ {[%clk 00:36:08]} {[%emt 00:00:30]} Kg8 {[%clk
00:46:21]} {[%emt 00:01:08]} 24. Rf1 {[%clk 00:34:56]} {[%emt 00:01:42]} Bg7
{[%clk 00:43:54]} {[%emt 00:02:57]} 25. a4 {[%clk 00:28:05]} {[%emt 00:07:21]}
Rf8 {[%clk 00:37:35]} {[%emt 00:06:49]} 26. Bb5 {[%clk 00:28:13]} {[%emt
00:00:22]} Nc6 {[%clk 00:34:50]} {[%emt 00:03:15]} 27. Qd3 {[%clk 00:24:17]}
{[%emt 00:04:25]} Rxf1+ {[%clk 00:33:07]} {[%emt 00:02:14]} 28. Qxf1 {[%clk
00:24:22]} {[%emt 00:00:25]} d5 {[%clk 00:29:57]} {[%emt 00:03:40]} 29. Qd3
{[%clk 00:24:44]} {[%emt 00:00:08]} Qd6 {[%clk 00:29:27]} {[%emt 00:01:01]} 30.
Bf2 {[%clk 00:17:51]} {[%emt 00:07:22]} Ne5 {[%clk 00:26:20]} {[%emt 00:03:37]}
31. Qe2 {[%clk 00:14:03]} {[%emt 00:04:17]} Nf7 {[%clk 00:20:44]} {[%emt
00:06:06]} 32. Kg2 {[%clk 00:11:58]} {[%emt 00:02:36]} Be5 {[%clk 00:19:34]}
{[%emt 00:01:39]} 33. Bh4 {[%clk 00:06:38]} {[%emt 00:05:50]} g5 {[%clk
00:16:11]} {[%emt 00:03:53]} 34. Bf2 {[%clk 00:06:56]} {[%emt 00:00:12]} Bf4
{[%clk 00:15:38]} {[%emt 00:01:03]} 35. Be3 {[%clk 00:03:19]} {[%emt 00:04:08]}
Bxe3 {[%clk 00:13:23]} {[%emt 00:02:45]} 36. Qxe3 {[%clk 00:03:43]} {[%emt
00:00:06]} d4 {[%clk 00:13:08]} {[%emt 00:00:45]} 37. Qd2 {[%clk 00:02:19]}
{[%emt 00:01:54]} Qe5 {[%clk 00:12:33]} {[%emt 00:01:05]} 38. Bd3 {[%clk
00:01:40]} {[%emt 00:01:10]} Nd6 {[%clk 00:11:52]} {[%emt 00:01:10]} 39. Qe2
{[%clk 00:01:43]} {[%emt 00:00:26]} h6 {[%clk 00:11:44]} {[%emt 00:00:38]} 40.
Qe1 {[%clk 00:00:47]} {[%emt 00:01:27]} Kg7 {[%clk 00:10:16]} {[%emt 00:01:58]}
41. Qg3 {[%clk 00:00:31]} {[%emt 00:00:46]} Qa5 {[%clk 00:07:52]} {[%emt
00:02:53]} 42. e5 {[%clk 00:00:33]} {[%emt 00:00:29]} Qd5+ {[%clk 00:07:43]}
{[%emt 00:00:39]} 43. Kf2 {[%clk 00:20:17]} {[%emt 00:10:46]} Nf7 {[%clk
00:36:42]} {[%emt 00:01:30]} 44. Qg2 {[%clk 00:15:56]} {[%emt 00:04:51]} Qxg2+
{[%clk 00:34:47]} {[%emt 00:02:26]} 45. Kxg2 {[%clk 00:16:21]} {[%emt
00:00:05]} Nxe5 {[%clk 00:34:24]} {[%emt 00:00:53]} 46. Be4 {[%clk 00:16:38]}
{[%emt 00:00:13]} b6 {[%clk 00:34:44]} {[%emt 00:00:10]} 47. Kf2 {[%clk
00:16:37]} {[%emt 00:00:31]} Nd7 {[%clk 00:33:34]} {[%emt 00:01:39]} 48. Kg3
{[%clk 00:14:25]} {[%emt 00:02:42]} Nc5 {[%clk 00:32:21]} {[%emt 00:01:44]} 49.
Bc6 {[%clk 00:14:46]} {[%emt 00:00:08]} Kf6 {[%clk 00:32:30]} {[%emt 00:00:22]}
50. h4 {[%clk 00:13:55]} {[%emt 00:01:21]} e5 {[%clk 00:32:24]} {[%emt
00:00:36]} 51. hxg5+ {[%clk 00:12:09]} {[%emt 00:02:16]} hxg5 {[%clk 00:32:23]}
{[%emt 00:00:32]} 52. Kf3 {[%clk 00:12:32]} {[%emt 00:00:06]} Ke6 {[%clk
00:32:35]} {[%emt 00:00:17]} 53. Be8 {[%clk 00:12:00]} {[%emt 00:01:02]} Kd5
{[%clk 00:32:17]} {[%emt 00:00:48]} 54. Bf7+ {[%clk 00:12:01]} {[%emt
00:00:29]} e6 {[%clk 00:32:27]} {[%emt 00:00:21]} 55. Be8 {[%clk 00:11:53]}
{[%emt 00:00:38]} e4+ {[%clk 00:32:19]} {[%emt 00:00:37]} 56. Ke2 {[%clk
00:12:14]} {[%emt 00:00:09]} Kc4 {[%clk 00:32:19]} {[%emt 00:00:30]} 57. Kd2
{[%clk 00:12:14]} {[%emt 00:00:31]} e3+ {[%clk 00:32:02]} {[%emt 00:00:46]} 58.
Kd1 {[%clk 00:12:25]} {[%emt 00:00:20]} Kc3 {[%clk 00:32:20]} {[%emt 00:00:11]}
59. Bb5 {[%clk 00:12:50]} {[%emt 00:00:05]} e5 {[%clk 00:32:21]} {[%emt
00:00:29]} 60. Kc1 {[%clk 00:13:12]} {[%emt 00:00:08]} e4 {[%clk 00:32:27]}
{[%emt 00:00:25]} 61. Kd1 {[%clk 00:13:37]} {[%emt 00:00:05]} d3 {[%clk
00:32:23]} {[%emt 00:00:33]} 62. cxd3 {[%clk 00:13:45]} {[%emt 00:00:22]} exd3
{[%clk 00:32:44]} {[%emt 00:00:09]} 63. Bc6 {[%clk 00:14:07]} {[%emt 00:00:09]}
e2+ {[%clk 00:32:28]} {[%emt 00:00:46]} 64. Ke1 {[%clk 00:14:20]} {[%emt
00:00:17]} Kc2 {[%clk 00:32:46]} {[%emt 00:00:12]} 0-1